fUSD/lending_fUSD_20240428
["ID","MTS","AMOUNT","RATE_DAILY","PERIOD"]
[323781231,1714289440270,-500.0,0.00016438,2]
[323781232,1714289440279,-500.0,0.00016438,2]
[323781233,1714289440288,-510.92100713,0.00016438,2]
[323781234,1714289440297,-500.0,0.00016438,2]
[323781235,1714289440306,-500.0,0.00016438,2]
[323781236,1714289440315,-595.38062294,0.00016438,2]
[323781237,1714289440324,-606.58,0.00016438,2]
[323781238,1714289440333,-500.0,0.00016438,2]
[323781239,1714289440342,-731.66,0.00016438,2]
[323781240,1714289440354,-10000.0,0.00016438,2]
[323781241,1714289440364,-500.0,0.00016438,2]
[323781242,1714289440373,-623.12383961,0.00016438,2]
[323781243,1714289440382,-611.09,0.00016438,2]
[323781244,1714289440392,-500.0,0.00016438,2]
[323781245,1714289440402,-500.0,0.00016438,2]
[323781246,1714289440411,-500.0,0.00016438,2]
[323781247,1714289440421,-500.0,0.00016438,2]
[323781248,1714289440434,-500.0,0.00016438,2]
[323781249,1714289440444,-500.0,0.00016438,2]
[323781250,1714289440454,-500.0,0.00016438,2]
[323781251,1714289440463,-539.39,0.00016438,2]
[323781252,1714289440472,-500.0,0.00016438,2]
[323781253,1714289440484,-651.23,0.00016438,2]
[323781254,1714289440494,-500.0,0.00016438,2]
[323781255,1714289440506,-571.74,0.00016438,2]
[323781256,1714289440516,-500.0,0.00016438,2]
[323781257,1714289440527,-1054.89,0.00016438,2]
[323781258,1714289440537,-500.0,0.00016438,2]
[323781259,1714289440548,-500.0,0.00016438,2]
[323781260,1714289440557,-501.68324887,0.00016438,2]
[323781261,1714289440567,-500.0,0.00016438,2]
[323781262,1714289440576,-500.0,0.00016438,2]
[323781263,1714289440586,-500.0,0.00016438,2]
[323781264,1714289440595,-500.0,0.00016438,2]
[323781265,1714289440605,-500.0,0.00016438,2]
[323781266,1714289440614,-500.0,0.00016438,2]
[323781267,1714289440623,-500.0,0.00016438,2]
[323781268,1714289440633,-500.0,0.00016438,2]
[323781269,1714289440642,-500.0,0.00016438,2]
[323781270,1714289440651,-500.0,0.00016438,2]
[323781271,1714289440661,-250.85930072,0.00016438,2]
[323781272,1714289440671,-500.0,0.00016438,2]
[323781273,1714289440681,-500.0,0.00016438,2]
[323781274,1714289440691,-500.53566052,0.00016438,2]
[323781275,1714289440700,-708.83,0.00016438,2]
[323781276,1714289440710,-500.0,0.00016438,2]
[323781277,1714289440719,-500.0,0.00016438,2]
[323781278,1714289440728,-500.0,0.00016438,2]
[323781279,1714289440738,-983.56,0.00016438,2]
[323781280,1714289440747,-533.44270684,0.00016438,2]
[323781281,1714289440756,-1079.83,0.00016438,2]
[323781282,1714289440766,-553.24,0.00016438,2]
[323781283,1714289440775,-503.40914536,0.00016438,2]
[323781284,1714289440785,-531.06,0.00016438,2]
[323781285,1714289440794,-500.0,0.00016438,2]
[323781286,1714289440803,-500.0,0.00016438,2]
[323781287,1714289440812,-500.0,0.00016438,2]
[323781288,1714289440822,-500.0,0.00016438,2]
[323781289,1714289440831,-934.12,0.00016438,2]
[323781290,1714289440841,-715.02,0.00016438,2]
[323781291,1714289440851,-530.85,0.00016438,2]
[323781292,1714289440861,-500.0,0.00016438,2]
[323781293,1714289440871,-639.52,0.00016438,2]
[323781294,1714289440880,-500.0,0.00016438,2]
[323781295,1714289440889,-641.76,0.00016438,2]
[323781296,1714289440898,-500.0,0.00016438,2]
[323781297,1714289440908,-500.0,0.00016438,2]
[323781298,1714289440917,-562.29,0.00016438,2]
[323781299,1714289440927,-501.6501993,0.00016438,2]
[323781300,1714289440936,-500.0,0.00016438,2]
[323781301,1714289440945,-500.0,0.00016438,2]
[323781302,1714289440954,-500.7,0.00016438,2]
[323781303,1714289440963,-500.0,0.00016438,2]
[323781304,1714289440972,-500.0,0.00016438,2]
[323781305,1714289440981,-500.0,0.00016438,2]
[323781306,1714289440990,-500.0,0.00016438,2]
[323781307,1714289440999,-993.03,0.00016438,2]
[323781308,1714289441008,-500.0,0.00016438,2]
[323781309,1714289441018,-500.0,0.00016438,2]
[323781310,1714289441027,-500.0,0.00016438,2]
[323781311,1714289441036,-500.0,0.00016438,2]
[323781312,1714289441046,-500.0,0.00016438,2]
[323781313,1714289441056,-500.0,0.00016438,2]
[323781314,1714289441066,-500.0,0.00016438,2]
[323781315,1714289441074,-1268.32,0.00016438,2]
[323781316,1714289441084,-500.0,0.00016438,2]
[323781317,1714289441094,-503.43165039,0.00016438,2]
[323781318,1714289441103,-500.0,0.00016438,2]
[323781319,1714289441115,-500.0,0.00016438,2]
[323781320,1714289441126,-500.0,0.00016438,2]
[323781321,1714289441134,-500.0,0.00016438,2]
[323781322,1714289441143,-161.59876826,0.00016438,2]
[323781323,1714289441152,-500.0,0.00016438,2]
[323781324,1714289441161,-517.69073984,0.00016438,2]
[323781325,1714289441170,-710.48,0.00016438,2]
[323781326,1714289441180,-875.48,0.00016438,2]
[323781327,1714289441190,-500.0,0.00016438,2]
[323781328,1714289441199,-500.0,0.00016438,2]
[323781329,1714289441208,-500.0,0.00016438,2]
[323781330,1714289441217,-1000.0,0.00016438,2]
[323781331,1714289441226,-500.0,0.00016438,2]
[323781332,1714289441235,-574.34,0.00016438,2]
[323781333,1714289441244,-500.0,0.00016438,2]
[323781334,1714289441253,-500.0,0.00016438,2]
[323781335,1714289441262,-500.0,0.00016438,2]
[323781336,1714289441271,-581.16,0.00016438,2]
[323781337,1714289441280,-500.0,0.00016438,2]
[323781338,1714289441289,-500.0,0.00016438,2]
[323781339,1714289441298,-1604.23,0.00016438,2]
[323781340,1714289441306,-500.0,0.00016438,2]
[323781341,1714289441316,-500.0,0.00016438,2]
[323781342,1714289441325,-500.0,0.00016438,2]
[323781343,1714289441334,-524.2,0.00016438,2]
[323781344,1714289441344,-500.0,0.00016438,2]
[323781345,1714289441358,-501.65018964,0.00016438,2]
[323781346,1714289441367,-500.0,0.00016438,2]
[323781347,1714289441377,-500.0,0.00016438,2]
[323781348,1714289441386,-500.0,0.00016438,2]
[323781349,1714289441395,-691.33,0.00016438,2]
[323781350,1714289441405,-500.0,0.00016438,2]
[323781351,1714289441414,-1550.44,0.00016438,2]
[323781352,1714289441423,-532.33,0.00016438,2]
[323781353,1714289441434,-500.0,0.00016438,2]
[323781354,1714289441444,-845.31,0.00016438,2]
[323781355,1714289441453,-308.80142628,0.00016438,2]
[323781356,1714289441462,-502.67375649,0.00016438,2]
[323781357,1714289441471,-500.0,0.00016438,2]
[323781358,1714289441480,-500.0,0.00016438,2]
[323781359,1714289441489,-500.0,0.00016438,2]
[323781360,1714289441498,-500.0,0.00016438,2]
[323781361,1714289441506,-500.0,0.00016438,2]
[323781362,1714289441515,-500.0,0.00016438,2]
[323781363,1714289441524,-500.0,0.00016438,2]
[323781364,1714289441533,-500.0,0.00016438,2]
[323781365,1714289441542,-500.0,0.00016438,2]
[323781366,1714289441551,-500.0,0.00016438,2]
[323781367,1714289441560,-501.83031497,0.00016438,2]
[323781368,1714289441569,-503.74246875,0.00016438,2]
[323781369,1714289441578,-812.14,0.00016438,2]
[323781370,1714289441588,-198.80702575,0.00016438,2]
[323781371,1714289441597,-504.43294634,0.00016438,2]
[323781372,1714289441606,-500.0,0.00016438,2]
[323781373,1714289441616,-500.0,0.00016438,2]
[323781374,1714289441626,-500.0,0.00016438,2]
[323781375,1714289441635,-500.0,0.00016438,2]
[323781376,1714289441644,-500.0,0.00016438,2]
[323781377,1714289441653,-1046.68,0.00016438,2]
[323781378,1714289441662,-500.0,0.00016438,2]
[323781379,1714289441671,-500.0,0.00016438,2]
[323781380,1714289441680,-569.55,0.00016438,2]
[323781381,1714289441689,-500.0,0.00016438,2]
[323781382,1714289441699,-504.06142925,0.00016438,2]
[323781383,1714289441708,-500.0,0.00016438,2]
[323781384,1714289441717,-500.0,0.00016438,2]
[323781385,1714289441726,-500.0,0.00016438,2]
[323781386,1714289441735,-510.23745408,0.00016438,2]
[323781387,1714289441744,-500.0,0.00016438,2]
[323781388,1714289441753,-797.32,0.00016438,2]
[323781389,1714289441762,-506.38547379,0.00016438,2]
[323781390,1714289441771,-500.0,0.00016438,2]
[323781391,1714289441781,-626.44,0.00016438,2]
[323781392,1714289441790,-500.0,0.00016438,2]
[323781393,1714289441799,-500.0,0.00016438,2]
[323781394,1714289441808,-500.0,0.00016438,2]
[323781395,1714289441817,-509.99,0.00016438,2]
[323781396,1714289441826,-503.25792235,0.00016438,2]
[323781397,1714289441835,-539.44,0.00016438,2]
[323781398,1714289441844,-159.6,0.00016438,2]
[323781399,1714289441853,-809.53,0.00016438,2]
[323781400,1714289441864,-500.0,0.00016438,2]
[323781401,1714289441872,-506.35,0.00016438,2]
[323781402,1714289441883,-514.28,0.00016438,2]
[323781403,1714289441892,-757.94,0.00016438,2]
[323781404,1714289441901,-500.0,0.00016438,2]
[323781405,1714289441910,-500.0,0.00016438,2]
[323781406,1714289441920,-500.0,0.00016438,2]
[323781407,1714289441929,-500.0,0.00016438,2]
[323781408,1714289441938,-500.0,0.00016438,2]
[323781409,1714289441947,-500.0,0.00016438,2]
[323781410,1714289441956,-500.0,0.00016438,2]
[323781411,1714289441965,-500.0,0.00016438,2]
[323781412,1714289441974,-995.97,0.00016438,2]
[323781413,1714289441983,-500.0,0.00016438,2]
[323781414,1714289441992,-908.81,0.00016438,2]
[323781415,1714289442001,-500.0,0.00016438,2]
[323781416,1714289442010,-1662.98,0.00016438,2]
[323781417,1714289442019,-847.93,0.00016438,2]
[323781418,1714289442028,-500.0,0.00016438,2]
[323781419,1714289442037,-500.0,0.00016438,2]
[323781420,1714289442046,-503.70548268,0.00016438,2]
[323781421,1714289442055,-500.0,0.00016438,2]
[323781422,1714289442065,-741.57,0.00016438,2]
[323781423,1714289442074,-500.0,0.00016438,2]
[323781424,1714289442082,-500.0,0.00016438,2]
[323781425,1714289442091,-506.7476299,0.00016438,2]
[323781426,1714289442100,-702.56,0.00016438,2]
[323781427,1714289442111,-928.66,0.00016438,2]
[323781428,1714289442120,-500.0,0.00016438,2]
[323781429,1714289442129,-1012.89,0.00016438,2]
[323781430,1714289442138,-500.0,0.00016438,2]
[323781431,1714289442147,-500.0,0.00016438,2]
[323781432,1714289442155,-500.0,0.00016438,2]
[323781433,1714289442164,-1139.78,0.00016438,2]
[323781434,1714289442173,-500.0,0.00016438,2]
[323781435,1714289442182,-500.0,0.00016438,2]
[323781436,1714289442191,-1779.91,0.00016438,2]
[323781437,1714289442200,-500.0,0.00016438,2]
[323781438,1714289442209,-500.0,0.00016438,2]
[323781439,1714289442218,-500.74146815,0.00016438,2]
[323781440,1714289442227,-709.4,0.00016438,2]
[323781441,1714289442236,-607.75,0.00016438,2]
[323781442,1714289442244,-500.0,0.00016438,2]
[323781443,1714289442254,-503.9980001,0.00016438,2]
[323781444,1714289442263,-1659.13,0.00016438,2]
[323781445,1714289442272,-1102.87,0.00016438,2]
[323781446,1714289442281,-500.0,0.00016438,2]
[323781447,1714289442290,-1872.87,0.00016438,2]
[323781448,1714289442299,-508.09185071,0.00016438,2]
[323781449,1714289442308,-506.49089233,0.00016438,2]
[323781450,1714289442317,-500.0,0.00016438,2]
[323781451,1714289442326,-500.0,0.00016438,2]
[323781452,1714289442335,-500.0,0.00016438,2]
[323781453,1714289442343,-500.0,0.00016438,2]
[323781454,1714289442353,-505.43481346,0.00016438,2]
[323781455,1714289442365,-500.0,0.00016438,2]
[323781456,1714289442375,-509.15119688,0.00016438,2]
[323781457,1714289442384,-1750.94,0.00016438,2]
[323781458,1714289442393,-500.95287457,0.00016438,2]
[323781459,1714289442403,-502.29037509,0.00016438,2]
[323781460,1714289442412,-1636.41,0.00016438,2]
[323781461,1714289442421,-716.42,0.00016438,2]
[323781462,1714289442430,-500.0,0.00016438,2]
[323781463,1714289442440,-500.0,0.00016438,2]
[323781464,1714289442449,-500.0,0.00016438,2]
[323781465,1714289442458,-500.0,0.00016438,2]
[323781466,1714289442467,-500.0,0.00016438,2]
[323781467,1714289442476,-507.42946311,0.00016438,2]
[323781468,1714289442486,-500.0,0.00016438,2]
[323781469,1714289442495,-500.1670451,0.00016438,2]
[323781470,1714289442504,-500.0,0.00016438,2]
[323781471,1714289442514,-500.0,0.00016438,2]
[323781473,1714289442523,-500.0,0.00016438,2]
[323781474,1714289442532,-500.0,0.00016438,2]
[323781475,1714289442541,-992.99,0.00016438,2]
[323781476,1714289442550,-1797.99,0.00016438,2]
[323781477,1714289442560,-1066.54,0.00016438,2]
[323781478,1714289442569,-500.0,0.00016438,2]
[323781480,1714289442578,-500.0,0.00016438,2]
[323781482,1714289442587,-500.0,0.00016438,2]
[323781484,1714289442597,-500.0,0.00016438,2]
[323781486,1714289442606,-500.0,0.00016438,2]
[323781488,1714289442616,-500.0,0.00016438,2]
[323781490,1714289442625,-500.0,0.00016438,2]
[323781492,1714289442634,-500.0,0.00016438,2]
[323781494,1714289442643,-500.0,0.00016438,2]
[323781496,1714289442652,-500.0,0.00016438,2]
[323781498,1714289442662,-557.57,0.00016438,2]
[323781500,1714289442673,-500.0,0.00016438,2]
[323781502,1714289442682,-842.05,0.00016438,2]
[323781504,1714289442691,-537.52,0.00016438,2]
[323781534,1714289442947,-500.0,0.00016438,2]
[323781537,1714289442967,-918.55,0.00016438,2]
[323781539,1714289442977,-1292.02,0.00016438,2]
[323781541,1714289442986,-1405.27,0.00016438,2]
[323781543,1714289442996,-886.42,0.00016438,2]
[323781546,1714289443006,-500.0,0.00016438,2]
[323781549,1714289443015,-500.0,0.00016438,2]
[323781552,1714289443025,-500.0,0.00016438,2]
[323781555,1714289443034,-500.0,0.00016438,2]
[323781558,1714289443044,-570.44,0.00016438,2]
[323781561,1714289443054,-500.0,0.00016438,2]
[323781564,1714289443063,-704.71,0.00016438,2]
[323781566,1714289443073,-500.0,0.00016438,2]
[323781570,1714289443083,-500.0,0.00016438,2]
[323781573,1714289443093,-500.0,0.00016438,2]
[323781575,1714289443103,-1170.79,0.00016438,2]
[323781578,1714289443112,-996.92,0.00016438,2]
[323781581,1714289443121,-500.0,0.00016438,2]
[323781584,1714289443130,-500.0,0.00016438,2]
[323781587,1714289443140,-500.0,0.00016438,2]
[323781590,1714289443149,-2358.19,0.00016438,2]
[323781593,1714289443159,-710.6,0.00016438,2]
[323781595,1714289443168,-500.0,0.00016438,2]
[323781599,1714289443178,-2013.99,0.00016438,2]
[323781601,1714289443187,-500.0,0.00016438,2]
[323781603,1714289443197,-500.0,0.00016438,2]
[323781606,1714289443207,-500.0,0.00016438,2]
[323781608,1714289443216,-1576.31,0.00016438,2]
[323781611,1714289443226,-500.0,0.00016438,2]
[323781614,1714289443235,-1427.74,0.00016438,2]
[323781617,1714289443245,-891.25,0.00016438,2]
[323781619,1714289443253,-500.0,0.00016438,2]
[323781622,1714289443263,-500.0,0.00016438,2]
[323781625,1714289443273,-500.0,0.00016438,2]
[323781627,1714289443282,-500.0,0.00016438,2]
[323781630,1714289443291,-502.00729791,0.00016438,2]
[323781633,1714289443300,-500.0,0.00016438,2]
[323781636,1714289443310,-500.0,0.00016438,2]
[323781640,1714289443319,-1131.05,0.00016438,2]
[323781643,1714289443329,-500.0,0.00016438,2]
[323781646,1714289443339,-500.0,0.00016438,2]
[323781648,1714289443349,-500.0,0.00016438,2]
[323781650,1714289443364,-500.0,0.00016438,2]
[323781652,1714289443373,-902.23,0.00016438,2]
[323781654,1714289443382,-501.43,0.00016438,2]
[323781656,1714289443392,-500.0,0.00016438,2]
[323781658,1714289443402,-500.0,0.00016438,2]
[323781660,1714289443411,-500.0,0.00016438,2]
[323781662,1714289443420,-297.97049873,0.00016438,2]
[323781664,1714289443430,-220.68922654,0.00016438,2]
[323781666,1714289443440,-500.0,0.00016438,2]
[323781667,1714289443449,-1200.2,0.00016438,2]
[323781668,1714289443458,-500.0,0.00016438,2]
[323781669,1714289443467,-1368.22,0.00016438,2]
[323781670,1714289443477,-1427.41,0.00016438,2]
[323781671,1714289443486,-500.0,0.00016438,2]
[323781672,1714289443495,-500.0,0.00016438,2]
[323781673,1714289443504,-500.0,0.00016438,2]
[323781674,1714289443514,-500.0,0.00016438,2]
[323781675,1714289443523,-500.0,0.00016438,2]
[323781677,1714289443532,-909.05,0.00016438,2]
[323781679,1714289443541,-1964.03,0.00016438,2]
[323781681,1714289443551,-272.81592221,0.00016438,2]
[323781683,1714289443561,-848.31,0.00016438,2]
[323781685,1714289443570,-1918.32,0.00016438,2]
[323781687,1714289443580,-1911.18,0.00016438,2]
[323781689,1714289443589,-500.0,0.00016438,2]
[323781691,1714289443598,-500.0,0.00016438,2]
[323781693,1714289443608,-500.0,0.00016438,2]
[323781695,1714289443617,-500.0,0.00016438,2]
[323781697,1714289443627,-500.0,0.00016438,2]
[323781699,1714289443636,-500.0,0.00016438,2]
[323781701,1714289443646,-500.0,0.00016438,2]
[323781703,1714289443656,-500.0,0.00016438,2]
[323781705,1714289443666,-500.0,0.00016438,2]
[323781707,1714289443675,-500.0,0.00016438,2]
[323781709,1714289443686,-698.76,0.00016438,2]
[323781711,1714289443696,-2080.82,0.00016438,2]
[323781713,1714289443705,-500.0,0.00016438,2]
[323781715,1714289443715,-534.75,0.00016438,2]
[323781717,1714289443725,-500.0,0.00016438,2]
[323781720,1714289443734,-1949.29,0.00016438,2]
[323781722,1714289443744,-500.0,0.00016438,2]
[323781724,1714289443753,-504.95674833,0.00016438,2]
[323781726,1714289443762,-500.0,0.00016438,2]
[323781728,1714289443772,-1653.14,0.00016438,2]
[323781730,1714289443781,-500.0,0.00016438,2]
[323781731,1714289443790,-1916.13,0.00016438,2]
[323781734,1714289443800,-751.87,0.00016438,2]
[323781736,1714289443810,-794.78,0.00016438,2]
[323781738,1714289443819,-500.0,0.00016438,2]
[323781739,1714289443828,-539.25,0.00016438,2]
[323781742,1714289443838,-726.64,0.00016438,2]
[323781744,1714289443847,-519.45,0.00016438,2]
[323781746,1714289443856,-500.0,0.00016438,2]
[323781748,1714289443867,-2357.71,0.00016438,2]
[323781750,1714289443876,-502.05183797,0.00016438,2]
[323781752,1714289443886,-500.0,0.00016438,2]
[323781754,1714289443895,-500.0,0.00016438,2]
[323781756,1714289443904,-194.32440387,0.00016438,2]
[323781759,1714289443913,-1680.1,0.00016438,2]
[323781761,1714289443922,-500.0,0.00016438,2]
[323781763,1714289443932,-500.0,0.00016438,2]
[323781765,1714289443942,-500.0,0.00016438,2]
[323781767,1714289443951,-987.38,0.00016438,2]
[323781769,1714289443960,-500.0,0.00016438,2]
[323781771,1714289443970,-501.98611609,0.00016438,2]
[323781773,1714289443980,-567.19349719,0.00016438,2]
[323781775,1714289443989,-1395.1,0.00016438,2]
[323781777,1714289444000,-500.0,0.00016438,2]
[323781779,1714289444010,-501.36785672,0.00016438,2]
[323781781,1714289444019,-1047.66,0.00016438,2]
[323781783,1714289444029,-500.0,0.00016438,2]
[323781784,1714289444039,-500.0,0.00016438,2]
[323781785,1714289444049,-500.0,0.00016438,2]
[323781786,1714289444059,-500.0,0.00016438,2]
[323781787,1714289444069,-702.16,0.00016438,2]
[323781788,1714289444079,-500.0,0.00016438,2]
[323781789,1714289444089,-1098.69,0.00016438,2]
[323781790,1714289444098,-500.0,0.00016438,2]
[323781791,1714289444108,-500.0,0.00016438,2]
[323781792,1714289444117,-500.0,0.00016438,2]
[323781793,1714289444127,-500.0,0.00016438,2]
[323781794,1714289444136,-749.7,0.00016438,2]
[323781795,1714289444146,-774.87,0.00016438,2]
[323781796,1714289444156,-1102.61,0.00016438,2]
[323781797,1714289444165,-1253.44,0.00016438,2]
[323781798,1714289444175,-500.0,0.00016438,2]
[323781799,1714289444185,-500.0,0.00016438,2]
[323781800,1714289444195,-558.04291659,0.00016438,2]
[323781801,1714289444205,-500.0,0.00016438,2]
[323781802,1714289444214,-652.87,0.00016438,2]
[323781803,1714289444223,-2131.57,0.00016438,2]
[323781804,1714289444233,-500.0,0.00016438,2]
[323781805,1714289444242,-500.0,0.00016438,2]
[323781806,1714289444252,-1070.19,0.00016438,2]
[323781807,1714289444262,-1327.68,0.00016438,2]
[323781808,1714289444272,-500.0,0.00016438,2]
[323781809,1714289444281,-500.0,0.00016438,2]
[323781810,1714289444291,-500.0,0.00016438,2]
[323781811,1714289444300,-500.0,0.00016438,2]
[323781812,1714289444309,-500.0,0.00016438,2]
[323781813,1714289444319,-575.92,0.00016438,2]
[323781814,1714289444328,-500.0,0.00016438,2]
[323781815,1714289444337,-218.59541938,0.00016438,2]
[323781816,1714289444346,-2279.32,0.00016438,2]
[323781817,1714289444359,-500.0,0.00016438,2]
[323781818,1714289444368,-500.0,0.00016438,2]
[323781819,1714289444378,-500.0,0.00016438,2]
[323781820,1714289444387,-500.0,0.00016438,2]
[323781821,1714289444396,-500.0,0.00016438,2]
[323781822,1714289444406,-500.0,0.00016438,2]
[323781823,1714289444416,-500.0,0.00016438,2]
[323781824,1714289444426,-1374.22,0.00016438,2]
[323781825,1714289444436,-500.0,0.00016438,2]
[323781826,1714289444447,-1962.9,0.00016438,2]
[323781827,1714289444456,-500.0,0.00016438,2]
[323781828,1714289444466,-500.0,0.00016438,2]
[323781829,1714289444475,-956.74,0.00016438,2]
[323781830,1714289444485,-500.0,0.00016438,2]
[323781831,1714289444494,-355.42843747,0.00016438,2]
[323781832,1714289444503,-1714.43,0.00016438,2]
[323781833,1714289444512,-506.44,0.00016438,2]
[323781834,1714289444522,-500.0,0.00016438,2]
[323781835,1714289444531,-1222.22,0.00016438,2]
[323781836,1714289444540,-922.46,0.00016438,2]
[323781837,1714289444550,-517.3,0.00016438,2]
[323781838,1714289444559,-519.49,0.00016438,2]
[323781839,1714289444568,-961.07,0.00016438,2]
[323781840,1714289444578,-500.0,0.00016438,2]
[323781841,1714289444587,-500.0,0.00016438,2]
[323781842,1714289444597,-657.95,0.00016438,2]
[323781843,1714289444606,-500.0,0.00016438,2]
[323781844,1714289444617,-991.97,0.00016438,2]
[323781845,1714289444627,-2195.8,0.00016438,2]
[323781846,1714289444636,-500.0,0.00016438,2]
[323781847,1714289444646,-500.0,0.00016438,2]
[323781848,1714289444655,-500.0,0.00016438,2]
[323781849,1714289444664,-534.61,0.00016438,2]
[323781850,1714289444674,-500.0,0.00016438,2]
[323781851,1714289444683,-500.0,0.00016438,2]
[323781852,1714289444693,-525.63,0.00016438,2]
[323781853,1714289444702,-500.0,0.00016438,2]
[323781854,1714289444711,-909.02,0.00016438,2]
[323781855,1714289444721,-500.0,0.00016438,2]
[323781856,1714289444731,-1781.0,0.00016438,2]
[323781857,1714289444741,-560.2,0.00016438,2]
[323781858,1714289444751,-500.0,0.00016438,2]
[323781859,1714289444760,-500.0,0.00016438,2]
[323781860,1714289444770,-500.0,0.00016438,2]
[323781861,1714289444779,-500.0,0.00016438,2]
[323781862,1714289444789,-2033.92,0.00016438,2]
[323781863,1714289444798,-500.0,0.00016438,2]
[323781864,1714289444808,-1879.48,0.00016438,2]
[323781865,1714289444817,-500.0,0.00016438,2]
[323781866,1714289444827,-500.0,0.00016438,2]
[323781867,1714289444836,-500.0,0.00016438,2]
[323781868,1714289444846,-500.0,0.00016438,2]
[323781869,1714289444855,-500.0,0.00016438,2]
[323781870,1714289444866,-500.0,0.00016438,2]
[323781871,1714289444876,-500.0,0.00016438,2]
[323781872,1714289444885,-529.05,0.00016438,2]
[323781873,1714289444895,-1048.46,0.00016438,2]
[323781874,1714289444905,-260.81920755,0.00016438,2]
[323781875,1714289444914,-500.0,0.00016438,2]
[323781876,1714289444924,-500.0,0.00016438,2]
[323781877,1714289444934,-889.54,0.00016438,2]
[323781878,1714289444945,-500.0,0.00016438,2]
[323781879,1714289444955,-500.0,0.00016438,2]
[323781880,1714289444966,-500.0,0.00016438,2]
[323781881,1714289444975,-500.0,0.00016438,2]
[323781882,1714289444985,-500.0,0.00016438,2]
[323781883,1714289444994,-511.23966098,0.00016438,2]
[323781884,1714289445004,-500.0,0.00016438,2]
[323781885,1714289445014,-500.0,0.00016438,2]
[323781886,1714289445023,-500.0,0.00016438,2]
[323781887,1714289445033,-1269.42,0.00016438,2]
[323781888,1714289445042,-500.0,0.00016438,2]
[323781889,1714289445053,-502.81209429,0.00016438,2]
[323781890,1714289445063,-500.0,0.00016438,2]
[323781891,1714289445073,-1216.63,0.00016438,2]
[323781892,1714289445082,-607.18,0.00016438,2]
[323781893,1714289445092,-973.15328874,0.00016438,2]
[323781894,1714289445101,-500.0,0.00016438,2]
[323781895,1714289445111,-547.72,0.00016438,2]
[323781896,1714289445121,-510.50527578,0.00016438,2]
[323781897,1714289445133,-1912.29,0.00016438,2]
[323781898,1714289445143,-500.0,0.00016438,2]
[323781899,1714289445153,-500.0,0.00016438,2]
[323781900,1714289445162,-940.76,0.00016438,2]
[323781901,1714289445172,-627.86,0.00016438,2]
[323781902,1714289445182,-500.0,0.00016438,2]
[323781903,1714289445191,-500.0,0.00016438,2]
[323781904,1714289445200,-1000.0,0.00016438,2]
[323781905,1714289445210,-500.0,0.00016438,2]
[323781906,1714289445219,-500.0,0.00016438,2]
[323781907,1714289445228,-784.1,0.00016438,2]
[323781908,1714289445238,-503.46092609,0.00016438,2]
[323781909,1714289445247,-500.0,0.00016438,2]
[323781910,1714289445257,-550.14,0.00016438,2]